[Event "Titled Tuesday Blitz October 31 Early 2023"]
[White "Marcziter, Dmitrii"]
[Black "Omariev, Maksim"]
[WhiteFideId "13900765"]
[BlackFideId "4193423"]
[WhiteElo "2378"]
[BlackElo "2518"]
[Result "1-0"]
[Round "10"]
[TimeControl "180+1"]
[Date "2023.10.31"]
[WhiteClock "0:00:41"]
[BlackClock "0:00:00"]
[Board "85"]

1. d4 {[%clk 0:02:44]}  h5 {[%clk 0:02:59]} 2. e4 {[%clk 0:02:43]}  h4 {[%clk 0:03:00]} 3. h3 {[%clk 0:02:43]}  d6 {[%clk 0:02:58]} 4. Nf3 {[%clk 0:02:42]}  Nc6 {[%clk 0:02:56]} 5. Nc3 {[%clk 0:02:38]}  e5 {[%clk 0:02:56]} 6. dxe5 {[%clk 0:02:37]}  Nxe5 {[%clk 0:02:52]} 7. Nd4 {[%clk 0:02:33]}  g6 {[%clk 0:02:43]} 8. f4 {[%clk 0:02:32]}  Nc6 {[%clk 0:02:42]} 9. Be3 {[%clk 0:02:31]}  Bg7 {[%clk 0:02:42]} 10. Qd2 {[%clk 0:02:30]}  Nf6 {[%clk 0:02:38]} 11. Bb5 {[%clk 0:02:29]}  Bd7 {[%clk 0:02:37]} 12. Bc4 {[%clk 0:02:28]}  Qe7 {[%clk 0:02:33]} 13. O-O-O {[%clk 0:02:26]}  O-O-O {[%clk 0:02:30]} 14. Rhe1 {[%clk 0:02:23]}  Rde8 {[%clk 0:01:46]} 15. Bf2 {[%clk 0:02:19]}  Kb8 {[%clk 0:01:42]} 16. Kb1 {[%clk 0:02:17]}  Rh5 {[%clk 0:01:33]} 17. Nd5 {[%clk 0:02:02]}  Qd8 {[%clk 0:01:29]} 18. Nxf6 {[%clk 0:01:57]}  Qxf6 {[%clk 0:01:30]} 19. Nxc6+ {[%clk 0:01:36]}  Bxc6 {[%clk 0:01:27]} 20. c3 {[%clk 0:01:24]}  Bxe4+ {[%clk 0:00:49]} 21. Ka1 {[%clk 0:01:21]}  Qf5 {[%clk 0:00:35]} 22. Bd5 {[%clk 0:00:50]}  Rhh8 {[%clk 0:00:00]} 23. Qe3 {[%clk 0:00:41]} 1-0


[Site "https://www.chess.com"]

[Event "Titled Tuesday Blitz October 31 Early 2023"]
[White "Tologon tegin, Semetei"]
[Black "Sargissyan, Sargis"]
[WhiteFideId "13800574"]
[BlackFideId "13303210"]
[WhiteElo "2512"]
[BlackElo "2399"]
[Result "1-0"]
[Round "10"]
[TimeControl "180+1"]
[Date "2023.10.31"]
[WhiteClock "0:01:05"]
[BlackClock "0:00:14"]
[Board "86"]

1. Nc3 {[%clk 0:02:46]}  e5 {[%clk 0:02:58]} 2. e4 {[%clk 0:02:44]}  Nf6 {[%clk 0:02:57]} 3. f4 {[%clk 0:02:44]}  d5 {[%clk 0:02:53]} 4. fxe5 {[%clk 0:02:43]}  Nxe4 {[%clk 0:02:51]} 5. Nf3 {[%clk 0:02:43]}  Bc5 {[%clk 0:02:35]} 6. d4 {[%clk 0:02:40]}  Bb4 {[%clk 0:02:34]} 7. Bd2 {[%clk 0:02:40]}  Bxc3 {[%clk 0:02:31]} 8. bxc3 {[%clk 0:02:41]}  c5 {[%clk 0:02:30]} 9. Bd3 {[%clk 0:02:34]}  Nc6 {[%clk 0:02:09]} 10. Qe2 {[%clk 0:02:23]}  Nxd2 {[%clk 0:01:55]} 11. Qxd2 {[%clk 0:02:21]}  Bg4 {[%clk 0:01:55]} 12. Qf4 {[%clk 0:02:12]}  Bxf3 {[%clk 0:01:52]} 13. gxf3 {[%clk 0:02:11]}  Qa5 {[%clk 0:01:36]} 14. Qd2 {[%clk 0:01:46]}  cxd4 {[%clk 0:01:34]} 15. cxd4 {[%clk 0:01:45]}  Qxd2+ {[%clk 0:01:34]} 16. Kxd2 {[%clk 0:01:46]}  Nxd4 {[%clk 0:01:34]} 17. f4 {[%clk 0:01:46]}  g6 {[%clk 0:01:26]} 18. Rab1 {[%clk 0:01:43]}  b6 {[%clk 0:01:25]} 19. Ke3 {[%clk 0:01:40]}  Ne6 {[%clk 0:01:21]} 20. c4 {[%clk 0:01:35]}  d4+ {[%clk 0:01:03]} 21. Kf3 {[%clk 0:01:27]}  Rc8 {[%clk 0:00:58]} 22. Rhc1 {[%clk 0:01:26]}  Nc5 {[%clk 0:00:55]} 23. Be4 {[%clk 0:01:26]}  Nxe4 {[%clk 0:00:39]} 24. Kxe4 {[%clk 0:01:25]}  Ke7 {[%clk 0:00:40]} 25. Kxd4 {[%clk 0:01:16]}  Rhd8+ {[%clk 0:00:40]} 26. Ke3 {[%clk 0:01:16]}  Rc5 {[%clk 0:00:35]} 27. Rb5 {[%clk 0:01:15]}  Rdc8 {[%clk 0:00:33]} 28. Rxc5 {[%clk 0:01:14]}  Rxc5 {[%clk 0:00:33]} 29. Kd4 {[%clk 0:01:14]}  f6 {[%clk 0:00:21]} 30. Rc2 {[%clk 0:01:09]}  Ke6 {[%clk 0:00:20]} 31. Re2 {[%clk 0:01:08]}  Kf5 {[%clk 0:00:19]} 32. e6 {[%clk 0:01:08]}  Rc8 {[%clk 0:00:16]} 33. e7 {[%clk 0:01:08]}  Re8 {[%clk 0:00:17]} 34. Kd5 {[%clk 0:01:08]}  Kxf4 {[%clk 0:00:15]} 35. Kd6 {[%clk 0:01:09]}  Kf3 {[%clk 0:00:11]} 36. Re6 {[%clk 0:01:05]}  f5 {[%clk 0:00:11]} 37. Kd7 {[%clk 0:01:06]}  Rxe7+ {[%clk 0:00:10]} 38. Rxe7 {[%clk 0:01:06]}  f4 {[%clk 0:00:11]} 39. Rxh7 {[%clk 0:01:06]}  Kg2 {[%clk 0:00:12]} 40. Rg7 {[%clk 0:01:06]}  f3 {[%clk 0:00:12]} 41. Rxg6+ {[%clk 0:01:07]}  Kxh2 {[%clk 0:00:13]} 42. Rf6 {[%clk 0:01:06]}  f2 {[%clk 0:00:14]} 43. Rxf2+ {[%clk 0:01:05]} 1-0


[Site "https://www.chess.com"]

[Event "Titled Tuesday Blitz October 31 Early 2023"]
[White "secrethawk1"]
[Black "HeroRubiksCube"]
[WhiteElo "2373"]
[BlackElo "2497"]
[Result "0-1"]
[Round "10"]
[TimeControl "180+1"]
[Date "2023.10.31"]
[WhiteClock "0:00:01"]
[BlackClock "0:00:17"]
[Board "89"]

1. e4 {[%clk 0:03:00]}  d5 {[%clk 0:02:58]} 2. exd5 {[%clk 0:03:01]}  Nf6 {[%clk 0:02:58]} 3. Nc3 {[%clk 0:03:02]}  Nxd5 {[%clk 0:02:57]} 4. Nf3 {[%clk 0:03:01]}  g6 {[%clk 0:02:57]} 5. Bc4 {[%clk 0:03:00]}  Nxc3 {[%clk 0:02:53]} 6. bxc3 {[%clk 0:03:01]}  Bg7 {[%clk 0:02:53]} 7. O-O {[%clk 0:03:02]}  O-O {[%clk 0:02:53]} 8. Rb1 {[%clk 0:03:03]}  b6 {[%clk 0:02:53]} 9. Re1 {[%clk 0:03:00]}  Bb7 {[%clk 0:02:53]} 10. d4 {[%clk 0:03:01]}  e6 {[%clk 0:02:51]} 11. a4 {[%clk 0:03:00]}  a5 {[%clk 0:02:51]} 12. Bg5 {[%clk 0:02:58]}  Bf6 {[%clk 0:02:49]} 13. Bf4 {[%clk 0:02:57]}  Nd7 {[%clk 0:02:47]} 14. Qe2 {[%clk 0:02:55]}  Re8 {[%clk 0:02:45]} 15. Ne5 {[%clk 0:02:52]}  Nxe5 {[%clk 0:02:43]} 16. dxe5 {[%clk 0:02:53]}  Bg7 {[%clk 0:02:40]} 17. Red1 {[%clk 0:02:53]}  Qe7 {[%clk 0:02:37]} 18. Bb5 {[%clk 0:02:44]}  Red8 {[%clk 0:02:36]} 19. Ra1 {[%clk 0:02:39]}  Qc5 {[%clk 0:02:21]} 20. Bc4 {[%clk 0:02:28]}  h6 {[%clk 0:02:11]} 21. Bb3 {[%clk 0:02:22]}  Kh7 {[%clk 0:02:08]} 22. Rd3 {[%clk 0:02:18]}  Rxd3 {[%clk 0:02:00]} 23. Qxd3 {[%clk 0:02:15]}  Bxe5 {[%clk 0:01:56]} 24. Qd7 {[%clk 0:02:08]}  Rf8 {[%clk 0:01:39]} 25. Be3 {[%clk 0:01:53]}  Qc6 {[%clk 0:01:36]} 26. Qxc6 {[%clk 0:01:49]}  Bxc6 {[%clk 0:01:37]} 27. Bd4 {[%clk 0:01:49]}  Bd6 {[%clk 0:01:30]} 28. Bf6 {[%clk 0:01:42]}  g5 {[%clk 0:01:23]} 29. Rd1 {[%clk 0:01:35]}  Kg6 {[%clk 0:01:21]} 30. Bd4 {[%clk 0:01:34]}  e5 {[%clk 0:01:18]} 31. Be3 {[%clk 0:01:33]}  f5 {[%clk 0:01:17]} 32. f3 {[%clk 0:01:32]}  Rb8 {[%clk 0:01:05]} 33. c4 {[%clk 0:01:21]}  Bc5 {[%clk 0:01:00]} 34. Bxc5 {[%clk 0:01:17]}  bxc5 {[%clk 0:01:01]} 35. Kf2 {[%clk 0:01:16]}  Kf6 {[%clk 0:00:59]} 36. Ke3 {[%clk 0:01:13]}  Ke7 {[%clk 0:00:57]} 37. h4 {[%clk 0:01:09]}  Rd8 {[%clk 0:00:48]} 38. Rh1 {[%clk 0:01:06]}  g4 {[%clk 0:00:43]} 39. Rg1 {[%clk 0:01:02]}  f4+ {[%clk 0:00:43]} 40. Ke2 {[%clk 0:01:02]}  g3 {[%clk 0:00:37]} 41. Re1 {[%clk 0:00:56]}  Kf6 {[%clk 0:00:37]} 42. c3 {[%clk 0:00:52]}  Rb8 {[%clk 0:00:36]} 43. Bc2 {[%clk 0:00:49]}  Rb2 {[%clk 0:00:36]} 44. Kd3 {[%clk 0:00:44]}  Ra2 {[%clk 0:00:31]} 45. Rb1 {[%clk 0:00:25]}  Bxa4 {[%clk 0:00:24]} 46. Bxa4 {[%clk 0:00:25]}  Rxa4 {[%clk 0:00:25]} 47. Rc1 {[%clk 0:00:19]}  Ra2 {[%clk 0:00:25]} 48. Rg1 {[%clk 0:00:16]}  Rb2 {[%clk 0:00:24]} 49. h5 {[%clk 0:00:14]}  a4 {[%clk 0:00:24]} 50. Ra1 {[%clk 0:00:08]}  Rxg2 {[%clk 0:00:23]} 51. Rxa4 {[%clk 0:00:08]}  Rf2 {[%clk 0:00:21]} 52. Ra6+ {[%clk 0:00:04]}  Kg5 {[%clk 0:00:21]} 53. Rg6+ {[%clk 0:00:03]}  Kxh5 {[%clk 0:00:22]} 54. Ke4 {[%clk 0:00:01]}  Kxg6 {[%clk 0:00:18]} 55. Kd3 {[%clk 0:00:02]}  g2 {[%clk 0:00:18]} 56. Ke4 {[%clk 0:00:01]}  g1=Q {[%clk 0:00:18]} 57. Kd5 {[%clk 0:00:02]}  Rd2+ {[%clk 0:00:17]} 58. Kxe5 {[%clk 0:00:01]}  Qe3# {[%clk 0:00:17]} 0-1


[Site "https://www.chess.com"]

[Event "Titled Tuesday Blitz October 31 Early 2023"]
[White "Willy, Stephen"]
[Black "chessculator16"]
[WhiteFideId "30981468"]
[WhiteElo "2492"]
[BlackElo "2349"]
[Result "0-1"]
[Round "10"]
[TimeControl "180+1"]
[Date "2023.10.31"]
[WhiteClock "0:00:00"]
[BlackClock "0:01:43"]
[Board "90"]

1. e4 {[%clk 0:03:00]}  c6 {[%clk 0:02:58]} 2. d4 {[%clk 0:03:00]}  d5 {[%clk 0:02:57]} 3. f3 {[%clk 0:03:00]}  dxe4 {[%clk 0:02:55]} 4. fxe4 {[%clk 0:03:01]}  e5 {[%clk 0:02:55]} 5. Nf3 {[%clk 0:03:01]}  Bg4 {[%clk 0:02:54]} 6. Bc4 {[%clk 0:03:01]}  Nd7 {[%clk 0:02:51]} 7. O-O {[%clk 0:03:00]}  Ngf6 {[%clk 0:02:49]} 8. Qe1 {[%clk 0:02:58]}  Bxf3 {[%clk 0:02:42]} 9. Rxf3 {[%clk 0:02:57]}  Be7 {[%clk 0:02:38]} 10. c3 {[%clk 0:02:54]}  O-O {[%clk 0:02:37]} 11. Rg3 {[%clk 0:02:35]}  Re8 {[%clk 0:02:34]} 12. Nd2 {[%clk 0:02:14]}  Qb6 {[%clk 0:02:30]} 13. Nf3 {[%clk 0:02:10]}  exd4 {[%clk 0:02:30]} 14. cxd4 {[%clk 0:01:59]}  Bb4 {[%clk 0:02:30]} 15. Rxg7+ {[%clk 0:01:27]}  Kxg7 {[%clk 0:02:24]} 16. Qg3+ {[%clk 0:01:22]}  Kh8 {[%clk 0:02:23]} 17. Ng5 {[%clk 0:01:10]}  Qxd4+ {[%clk 0:02:22]} 18. Be3 {[%clk 0:01:09]}  Qxc4 {[%clk 0:02:22]} 19. Rf1 {[%clk 0:01:06]}  Bc5 {[%clk 0:02:20]} 20. Bxc5 {[%clk 0:01:01]}  Qxc5+ {[%clk 0:02:20]} 21. Kh1 {[%clk 0:01:01]}  Qc4 {[%clk 0:02:18]} 22. Rd1 {[%clk 0:00:52]}  Rad8 {[%clk 0:02:15]} 23. b3 {[%clk 0:00:52]}  Ne5 {[%clk 0:02:10]} 24. Rg1 {[%clk 0:00:33]}  Qd3 {[%clk 0:01:59]} 25. Qf4 {[%clk 0:00:29]}  Qd6 {[%clk 0:01:55]} 26. Qf5 {[%clk 0:00:20]}  Re7 {[%clk 0:01:51]} 27. h3 {[%clk 0:00:18]}  Ng6 {[%clk 0:01:49]} 28. Rf1 {[%clk 0:00:19]}  Kg7 {[%clk 0:01:45]} 29. h4 {[%clk 0:00:08]}  Qe5 {[%clk 0:01:45]} 30. Qh3 {[%clk 0:00:05]}  Nxe4 {[%clk 0:01:43]} 31. Nf3 {[%clk 0:00:00]}  Qe6 {[%clk 0:01:43]} 0-1


[Site "https://www.chess.com"]

[Event "Titled Tuesday Blitz October 31 Early 2023"]
[White "Buchenau, Frank"]
[Black "Malikova777"]
[WhiteFideId "4604350"]
[WhiteElo "2466"]
[BlackElo "2316"]
[Result "1-0"]
[Round "10"]
[TimeControl "180+1"]
[Date "2023.10.31"]
[WhiteClock "0:00:16"]
[BlackClock "0:00:00"]
[Board "93"]

1. e4 {[%clk 0:02:48]}  c6 {[%clk 0:02:59]} 2. Nf3 {[%clk 0:02:47]}  d5 {[%clk 0:03:00]} 3. Nc3 {[%clk 0:02:45]}  Bg4 {[%clk 0:02:58]} 4. d4 {[%clk 0:02:42]}  Nf6 {[%clk 0:02:51]} 5. h3 {[%clk 0:02:39]}  Bxf3 {[%clk 0:02:48]} 6. Qxf3 {[%clk 0:02:39]}  dxe4 {[%clk 0:02:45]} 7. Qe3 {[%clk 0:02:38]}  e6 {[%clk 0:02:33]} 8. Nxe4 {[%clk 0:02:31]}  Nxe4 {[%clk 0:02:32]} 9. Qxe4 {[%clk 0:02:31]}  Nd7 {[%clk 0:02:33]} 10. c3 {[%clk 0:02:25]}  Nf6 {[%clk 0:02:33]} 11. Qc2 {[%clk 0:02:23]}  Bd6 {[%clk 0:02:32]} 12. Bd3 {[%clk 0:02:21]}  Qc7 {[%clk 0:02:32]} 13. Bg5 {[%clk 0:02:16]}  Nd5 {[%clk 0:02:26]} 14. O-O {[%clk 0:02:05]}  h6 {[%clk 0:02:25]} 15. Bd2 {[%clk 0:02:00]}  Bf4 {[%clk 0:02:23]} 16. c4 {[%clk 0:01:51]}  Nf6 {[%clk 0:01:59]} 17. Bc3 {[%clk 0:01:49]}  O-O {[%clk 0:01:45]} 18. Rfe1 {[%clk 0:01:49]}  Nd7 {[%clk 0:01:38]} 19. Rad1 {[%clk 0:01:40]}  Rad8 {[%clk 0:01:35]} 20. b4 {[%clk 0:01:36]}  e5 {[%clk 0:01:29]} 21. Qe2 {[%clk 0:01:09]}  exd4 {[%clk 0:01:19]} 22. Bxd4 {[%clk 0:01:04]}  Bg5 {[%clk 0:01:01]} 23. Qe4 {[%clk 0:01:00]}  g6 {[%clk 0:00:52]} 24. h4 {[%clk 0:00:53]}  Bf6 {[%clk 0:00:48]} 25. h5 {[%clk 0:00:51]}  Bxd4 {[%clk 0:00:40]} 26. Qxd4 {[%clk 0:00:50]}  g5 {[%clk 0:00:23]} 27. Re7 {[%clk 0:00:45]}  Qf4 {[%clk 0:00:13]} 28. Rxd7 {[%clk 0:00:40]}  Rxd7 {[%clk 0:00:11]} 29. Qxd7 {[%clk 0:00:34]}  b5 {[%clk 0:00:09]} 30. Qxc6 {[%clk 0:00:29]}  Qg4 {[%clk 0:00:07]} 31. Qf3 {[%clk 0:00:20]}  Qe6 {[%clk 0:00:02]} 32. Qe4 {[%clk 0:00:16]}  Qxe4 {[%clk 0:00:03]} 33. Bxe4 {[%clk 0:00:16]}  bxc4 {[%clk 0:00:03]} 34. Rc1 {[%clk 0:00:16]}  Rc8 {[%clk 0:00:00]} 35. Rc3 {[%clk 0:00:16]} 1-0


[Site "https://www.chess.com"]

[Event "Titled Tuesday Blitz October 31 Early 2023"]
[White "Tharushi, T H D Niklesha"]
[Black "Pinto, Daniel"]
[WhiteFideId "9918264"]
[BlackFideId "3303144"]
[WhiteElo "2268"]
[BlackElo "2450"]
[Result "1-0"]
[Round "10"]
[TimeControl "180+1"]
[Date "2023.10.31"]
[WhiteClock "0:00:16"]
[BlackClock "0:00:00"]
[Board "95"]

1. e4 {[%clk 0:03:00]}  c5 {[%clk 0:02:59]} 2. Nf3 {[%clk 0:03:01]}  Nc6 {[%clk 0:02:59]} 3. d4 {[%clk 0:03:01]}  cxd4 {[%clk 0:03:00]} 4. Nxd4 {[%clk 0:03:02]}  Nf6 {[%clk 0:03:01]} 5. Nc3 {[%clk 0:03:00]}  e5 {[%clk 0:03:01]} 6. Ndb5 {[%clk 0:02:59]}  d6 {[%clk 0:02:59]} 7. Nd5 {[%clk 0:02:58]}  Nxd5 {[%clk 0:02:57]} 8. exd5 {[%clk 0:02:58]}  Nb8 {[%clk 0:02:57]} 9. c4 {[%clk 0:02:59]}  a6 {[%clk 0:02:46]} 10. Qa4 {[%clk 0:02:49]}  Nd7 {[%clk 0:02:05]} 11. Be3 {[%clk 0:02:45]}  Rb8 {[%clk 0:01:42]} 12. Nc3 {[%clk 0:02:26]}  Be7 {[%clk 0:01:40]} 13. Bd3 {[%clk 0:02:25]}  O-O {[%clk 0:01:40]} 14. O-O {[%clk 0:02:18]}  f5 {[%clk 0:01:39]} 15. f4 {[%clk 0:02:18]}  e4 {[%clk 0:01:37]} 16. Bc2 {[%clk 0:02:15]}  Bf6 {[%clk 0:01:34]} 17. Ne2 {[%clk 0:02:11]}  b5 {[%clk 0:01:33]} 18. cxb5 {[%clk 0:02:09]}  Rxb5 {[%clk 0:01:21]} 19. Nd4 {[%clk 0:01:59]}  Nb6 {[%clk 0:00:59]} 20. Qa3 {[%clk 0:01:43]}  Nc4 {[%clk 0:00:57]} 21. Qc3 {[%clk 0:01:28]}  Nxe3 {[%clk 0:00:57]} 22. Qxe3 {[%clk 0:01:29]}  Rxb2 {[%clk 0:00:39]} 23. Bb3 {[%clk 0:01:26]}  Qb6 {[%clk 0:00:38]} 24. Rad1 {[%clk 0:01:25]}  a5 {[%clk 0:00:19]} 25. Nxf5 {[%clk 0:01:22]}  Qxe3+ {[%clk 0:00:13]} 26. Nxe3 {[%clk 0:01:22]}  Ba6 {[%clk 0:00:12]} 27. Rf2 {[%clk 0:01:08]}  Rxf2 {[%clk 0:00:08]} 28. Kxf2 {[%clk 0:01:09]}  Rc8 {[%clk 0:00:09]} 29. Nf5 {[%clk 0:01:05]}  a4 {[%clk 0:00:03]} 30. Bxa4 {[%clk 0:01:03]}  Rb8 {[%clk 0:00:04]} 31. Bb3 {[%clk 0:01:03]}  Rb6 {[%clk 0:00:05]} 32. Ke3 {[%clk 0:01:01]}  g6 {[%clk 0:00:05]} 33. Nd4 {[%clk 0:00:59]}  Bd3 {[%clk 0:00:05]} 34. Nc6 {[%clk 0:00:46]}  Kf7 {[%clk 0:00:04]} 35. g4 {[%clk 0:00:46]}  g5 {[%clk 0:00:04]} 36. f5 {[%clk 0:00:38]}  Kg7 {[%clk 0:00:03]} 37. Nd4 {[%clk 0:00:33]}  h5 {[%clk 0:00:03]} 38. Ne6+ {[%clk 0:00:33]}  Kh6 {[%clk 0:00:03]} 39. h3 {[%clk 0:00:32]}  Rb8 {[%clk 0:00:01]} 40. Rc1 {[%clk 0:00:29]}  Ra8 {[%clk 0:00:01]} 41. Rc6 {[%clk 0:00:28]}  hxg4 {[%clk 0:00:01]} 42. hxg4 {[%clk 0:00:28]}  Be5 {[%clk 0:00:02]} 43. Rc1 {[%clk 0:00:18]}  Kh7 {[%clk 0:00:02]} 44. Rh1+ {[%clk 0:00:17]}  Kg8 {[%clk 0:00:02]} 45. Rh6 {[%clk 0:00:17]}  Rc8 {[%clk 0:00:02]} 46. Rg6+ {[%clk 0:00:18]}  Kf7 {[%clk 0:00:02]} 47. Rxg5 {[%clk 0:00:18]}  Rc1 {[%clk 0:00:02]} 48. Rh5 {[%clk 0:00:17]}  Rd1 {[%clk 0:00:00]} 49. Bxd1 {[%clk 0:00:16]} 1-0


[Site "https://www.chess.com"]

[Event "Titled Tuesday Blitz October 31 Early 2023"]
[White "Miszler, Levente"]
[Black "Kuchava, Ana"]
[WhiteFideId "763276"]
[BlackFideId "13605348"]
[WhiteElo "2437"]
[BlackElo "2263"]
[Result "1-0"]
[Round "10"]
[TimeControl "180+1"]
[Date "2023.10.31"]
[WhiteClock "0:01:37"]
[BlackClock "0:00:10"]
[Board "96"]

1. Nf3 {[%clk 0:03:00]}  d5 {[%clk 0:02:59]} 2. c4 {[%clk 0:03:01]}  e6 {[%clk 0:02:58]} 3. d4 {[%clk 0:02:59]}  Nf6 {[%clk 0:02:57]} 4. Nc3 {[%clk 0:03:00]}  Be7 {[%clk 0:02:57]} 5. Qc2 {[%clk 0:02:54]}  O-O {[%clk 0:02:40]} 6. Bf4 {[%clk 0:02:53]}  c5 {[%clk 0:02:38]} 7. e3 {[%clk 0:02:52]}  Nc6 {[%clk 0:02:35]} 8. cxd5 {[%clk 0:02:50]}  exd5 {[%clk 0:02:26]} 9. Bb5 {[%clk 0:02:51]}  Bg4 {[%clk 0:02:14]} 10. Bxc6 {[%clk 0:02:48]}  Bxf3 {[%clk 0:02:12]} 11. Bxb7 {[%clk 0:02:40]}  Bxg2 {[%clk 0:02:11]} 12. Rg1 {[%clk 0:02:40]}  cxd4 {[%clk 0:01:35]} 13. exd4 {[%clk 0:02:36]}  Be4 {[%clk 0:01:20]} 14. Nxe4 {[%clk 0:02:32]}  Nxe4 {[%clk 0:01:19]} 15. Bxa8 {[%clk 0:02:32]}  Bb4+ {[%clk 0:01:19]} 16. Ke2 {[%clk 0:02:30]}  Qxa8 {[%clk 0:01:18]} 17. Qd3 {[%clk 0:02:21]}  Re8 {[%clk 0:01:15]} 18. Be3 {[%clk 0:02:13]}  f5 {[%clk 0:01:11]} 19. Qb5 {[%clk 0:02:10]}  f4 {[%clk 0:01:07]} 20. Qd7 {[%clk 0:02:09]}  Bf8 {[%clk 0:01:05]} 21. Rxg7+ {[%clk 0:02:04]}  Bxg7 {[%clk 0:00:59]} 22. Rg1 {[%clk 0:02:04]}  Ng3+ {[%clk 0:00:53]} 23. hxg3 {[%clk 0:02:03]}  fxe3 {[%clk 0:00:51]} 24. fxe3 {[%clk 0:02:04]}  Bxd4 {[%clk 0:00:46]} 25. Rf1 {[%clk 0:01:59]}  Qd8 {[%clk 0:00:34]} 26. Qxd8 {[%clk 0:01:53]}  Rxd8 {[%clk 0:00:32]} 27. exd4 {[%clk 0:01:54]}  Rb8 {[%clk 0:00:24]} 28. b3 {[%clk 0:01:53]}  a5 {[%clk 0:00:18]} 29. Kd3 {[%clk 0:01:47]}  Kg7 {[%clk 0:00:16]} 30. Rf5 {[%clk 0:01:43]}  Rb5 {[%clk 0:00:14]} 31. Kc3 {[%clk 0:01:42]}  Kg6 {[%clk 0:00:13]} 32. Re5 {[%clk 0:01:42]}  Kf6 {[%clk 0:00:13]} 33. a4 {[%clk 0:01:42]}  Rb8 {[%clk 0:00:11]} 34. Rxd5 {[%clk 0:01:42]}  Rg8 {[%clk 0:00:11]} 35. Rxa5 {[%clk 0:01:38]}  Rxg3+ {[%clk 0:00:12]} 36. Kc4 {[%clk 0:01:39]}  h5 {[%clk 0:00:12]} 37. Ra6+ {[%clk 0:01:37]}  Ke7 {[%clk 0:00:11]} 38. Rh6 {[%clk 0:01:36]}  Rg5 {[%clk 0:00:11]} 39. b4 {[%clk 0:01:35]}  Kd7 {[%clk 0:00:11]} 40. a5 {[%clk 0:01:36]}  Kc7 {[%clk 0:00:11]} 41. b5 {[%clk 0:01:36]}  Kb7 {[%clk 0:00:10]} 42. Rh7+ {[%clk 0:01:37]} 1-0


[Site "https://www.chess.com"]

[Event "Titled Tuesday Blitz October 31 Early 2023"]
[White "Souza, Gustavo Horokoski De"]
[Black "Rosh Jain"]
[WhiteFideId "2146584"]
[BlackFideId "25789465"]
[WhiteElo "2167"]
[BlackElo "2435"]
[Result "1-0"]
[Round "10"]
[TimeControl "180+1"]
[Date "2023.10.31"]
[WhiteClock "0:01:59"]
[BlackClock "0:01:32"]
[Board "98"]

1. c4 {[%clk 0:02:53]}  f5 {[%clk 0:03:00]} 2. Nc3 {[%clk 0:02:52]}  Nf6 {[%clk 0:02:59]} 3. g3 {[%clk 0:02:53]}  g6 {[%clk 0:02:59]} 4. Bg2 {[%clk 0:02:53]}  Bg7 {[%clk 0:02:58]} 5. d4 {[%clk 0:02:53]}  O-O {[%clk 0:02:58]} 6. Nf3 {[%clk 0:02:52]}  d6 {[%clk 0:02:56]} 7. O-O {[%clk 0:02:52]}  Qe8 {[%clk 0:02:56]} 8. b3 {[%clk 0:02:52]}  e5 {[%clk 0:02:56]} 9. dxe5 {[%clk 0:02:53]}  dxe5 {[%clk 0:02:57]} 10. Bb2 {[%clk 0:02:53]}  c6 {[%clk 0:02:54]} 11. Qc2 {[%clk 0:02:48]}  Nbd7 {[%clk 0:02:52]} 12. Rfd1 {[%clk 0:02:48]}  b6 {[%clk 0:02:48]} 13. Rd6 {[%clk 0:02:47]}  Bb7 {[%clk 0:02:47]} 14. Ng5 {[%clk 0:02:45]}  Qe7 {[%clk 0:02:38]} 15. Rad1 {[%clk 0:02:41]}  Rfe8 {[%clk 0:02:19]} 16. Ne6 {[%clk 0:02:38]}  Bh8 {[%clk 0:02:18]} 17. Nc7 {[%clk 0:02:37]}  Nc5 {[%clk 0:02:12]} 18. Nxa8 {[%clk 0:02:33]}  Bxa8 {[%clk 0:02:13]} 19. Bxc6 {[%clk 0:02:30]}  Bxc6 {[%clk 0:02:09]} 20. Rxc6 {[%clk 0:02:30]}  Rd8 {[%clk 0:01:54]} 21. Rxd8+ {[%clk 0:02:22]}  Qxd8 {[%clk 0:01:55]} 22. Qd1 {[%clk 0:02:22]}  Ncd7 {[%clk 0:01:39]} 23. Nd5 {[%clk 0:02:14]}  Ne4 {[%clk 0:01:37]} 24. Rc8 {[%clk 0:02:10]}  Qxc8 {[%clk 0:01:36]} 25. Ne7+ {[%clk 0:02:10]}  Kf7 {[%clk 0:01:35]} 26. Nxc8 {[%clk 0:02:10]}  Ke8 {[%clk 0:01:35]} 27. Nd6+ {[%clk 0:02:06]}  Nxd6 {[%clk 0:01:35]} 28. Qxd6 {[%clk 0:02:07]}  Bf6 {[%clk 0:01:32]} 29. f4 {[%clk 0:01:59]} 1-0


[Site "https://www.chess.com"]

[Event "Titled Tuesday Blitz October 31 Early 2023"]
[White "Phillips, Rene"]
[Black "Todorovic, Bojan"]
[WhiteFideId "2056275"]
[BlackFideId "917087"]
[WhiteElo "2055"]
[BlackElo "2431"]
[Result "1-0"]
[Round "10"]
[TimeControl "180+1"]
[Date "2023.10.31"]
[WhiteClock "0:00:18"]
[BlackClock "0:00:00"]
[Board "99"]

1. d4 {[%clk 0:03:00]}  g6 {[%clk 0:02:57]} 2. Bf4 {[%clk 0:03:01]}  Bg7 {[%clk 0:02:57]} 3. e3 {[%clk 0:03:01]}  c5 {[%clk 0:02:56]} 4. c3 {[%clk 0:03:01]}  Qb6 {[%clk 0:02:55]} 5. Qb3 {[%clk 0:03:01]}  Nc6 {[%clk 0:02:54]} 6. Nf3 {[%clk 0:02:59]}  d6 {[%clk 0:02:53]} 7. Nbd2 {[%clk 0:02:58]}  Nf6 {[%clk 0:02:47]} 8. Bc4 {[%clk 0:02:57]}  O-O {[%clk 0:02:44]} 9. h3 {[%clk 0:02:57]}  Na5 {[%clk 0:02:38]} 10. Qxb6 {[%clk 0:02:55]}  axb6 {[%clk 0:02:39]} 11. Be2 {[%clk 0:02:50]}  Nc6 {[%clk 0:02:30]} 12. O-O {[%clk 0:02:49]}  cxd4 {[%clk 0:02:23]} 13. exd4 {[%clk 0:02:48]}  Nd5 {[%clk 0:02:18]} 14. Bg3 {[%clk 0:02:45]}  Bd7 {[%clk 0:02:11]} 15. Rfe1 {[%clk 0:02:44]}  Rfe8 {[%clk 0:02:10]} 16. Bc4 {[%clk 0:02:39]}  Nc7 {[%clk 0:02:05]} 17. Ng5 {[%clk 0:02:37]}  Rf8 {[%clk 0:01:51]} 18. Ndf3 {[%clk 0:02:18]}  h6 {[%clk 0:01:47]} 19. Ne4 {[%clk 0:01:54]}  b5 {[%clk 0:01:46]} 20. Bb3 {[%clk 0:01:48]}  Na5 {[%clk 0:01:43]} 21. Nc5 {[%clk 0:01:39]}  dxc5 {[%clk 0:01:34]} 22. Bxc7 {[%clk 0:01:38]}  Nxb3 {[%clk 0:01:34]} 23. axb3 {[%clk 0:01:36]}  cxd4 {[%clk 0:01:24]} 24. Rxa8 {[%clk 0:01:29]}  Rxa8 {[%clk 0:01:23]} 25. Rxe7 {[%clk 0:01:23]}  dxc3 {[%clk 0:01:17]} 26. bxc3 {[%clk 0:01:21]}  Be6 {[%clk 0:01:14]} 27. Be5 {[%clk 0:01:03]}  Bd5 {[%clk 0:00:39]} 28. Bxg7 {[%clk 0:00:56]}  Kxg7 {[%clk 0:00:38]} 29. Nd4 {[%clk 0:00:50]}  Ra1+ {[%clk 0:00:25]} 30. Kh2 {[%clk 0:00:49]}  Rb1 {[%clk 0:00:18]} 31. b4 {[%clk 0:00:48]}  Rc1 {[%clk 0:00:13]} 32. Rc7 {[%clk 0:00:47]}  Bc4 {[%clk 0:00:11]} 33. Rxb7 {[%clk 0:00:40]}  Rxc3 {[%clk 0:00:09]} 34. Nxb5 {[%clk 0:00:38]}  Rc2 {[%clk 0:00:07]} 35. Nd6 {[%clk 0:00:34]}  Bd5 {[%clk 0:00:04]} 36. Ne8+ {[%clk 0:00:18]}  Kf8 {[%clk 0:00:00]} 37. Rb8 {[%clk 0:00:18]} 1-0


[Site "https://www.chess.com"]